[Event "Early-Titled-Tuesday-Blitz-April-23-2024"]
[Site "Chess.com"]
[Date "2024.04.23"]
[Round "11"]
[White "bescmelasti"]
[Black "only_strong_moves"]
[Result "0-1"]
[WhiteElo "2618"]
[BlackElo "2710"]
[TimeControl "180+1"]
[EndTime "10:10:42 PDT"]
[Termination "only_strong_moves won by resignation"]

1. e4 {[%clk 0:03:00.9]} 1... c5 {[%clk 0:03:00.3]} 2. Nf3 {[%clk 0:03:01.1]}
2... Nc6 {[%clk 0:03:00.7]} 3. Bb5 {[%clk 0:03:01]} 3... Nf6 {[%clk 0:03:00.4]}
4. Bxc6 {[%clk 0:03:00.6]} 4... dxc6 {[%clk 0:02:59.9]} 5. d3 {[%clk 0:03:01.5]}
5... Qc7 {[%clk 0:02:59.7]} 6. O-O {[%clk 0:03:01.4]} 6... e5 {[%clk 0:02:59]}
7. a4 {[%clk 0:03:01.5]} 7... Be6 {[%clk 0:02:57.6]} 8. b3 {[%clk 0:02:59.8]}
8... Nd7 {[%clk 0:02:57.6]} 9. Ng5 {[%clk 0:02:59.2]} 9... Qd6 {[%clk
0:02:54.7]} 10. a5 {[%clk 0:02:47.4]} 10... Be7 {[%clk 0:02:53.8]} 11. Nxe6
{[%clk 0:02:47.2]} 11... Qxe6 {[%clk 0:02:54.7]} 12. Nd2 {[%clk 0:02:41.3]}
12... O-O {[%clk 0:02:53.1]} 13. Nc4 {[%clk 0:02:38]} 13... b5 {[%clk
0:02:50.8]} 14. axb6 {[%clk 0:02:33.8]} 14... axb6 {[%clk 0:02:51.7]} 15. Bb2
{[%clk 0:02:33.4]} 15... b5 {[%clk 0:02:50]} 16. Ne3 {[%clk 0:02:32.8]} 16...
Bg5 {[%clk 0:02:49.8]} 17. Qe2 {[%clk 0:02:13.1]} 17... Bxe3 {[%clk 0:02:47.9]}
18. Qxe3 {[%clk 0:02:11.4]} 18... c4 {[%clk 0:02:45.3]} 19. bxc4 {[%clk
0:02:00.4]} 19... bxc4 {[%clk 0:02:46.2]} 20. f4 {[%clk 0:02:00.6]} 20... cxd3
{[%clk 0:02:45.4]} 21. cxd3 {[%clk 0:02:01.5]} 21... exf4 {[%clk 0:02:36.4]} 22.
Qxf4 {[%clk 0:01:53.3]} 22... f6 {[%clk 0:02:36.3]} 23. Bd4 {[%clk 0:01:47.9]}
23... c5 {[%clk 0:02:30.6]} 24. Be3 {[%clk 0:01:46.8]} 24... Ne5 {[%clk
0:02:28]} 25. Qg3 {[%clk 0:01:33.6]} 25... Qe7 {[%clk 0:02:08.1]} 26. d4 {[%clk
0:01:30.6]} 26... cxd4 {[%clk 0:02:04.7]} 27. Bxd4 {[%clk 0:01:31.5]} 27... Nc6
{[%clk 0:02:03.4]} 28. Qd3 {[%clk 0:01:18.7]} 28... Kh8 {[%clk 0:02:00.6]} 29.
Rxa8 {[%clk 0:01:17.6]} 29... Rxa8 {[%clk 0:02:01.5]} 30. Bc3 {[%clk 0:01:16.9]}
30... Ra3 {[%clk 0:01:58.2]} 31. Qc4 {[%clk 0:01:15.7]} 31... Qe8 {[%clk
0:01:15.5]} 32. h3 {[%clk 0:00:48.4]} 32... Ra8 {[%clk 0:01:11.8]} 33. Rxf6
{[%clk 0:00:40.5]} 33... Ne5 {[%clk 0:01:00.9]} 34. Bxe5 {[%clk 0:00:35.6]}
34... Qxe5 {[%clk 0:01:01.8]} 35. Rf1 {[%clk 0:00:29]} 35... Re8 {[%clk
0:01:01]} 36. Re1 {[%clk 0:00:24.5]} 36... h6 {[%clk 0:00:59.2]} 37. Qd3 {[%clk
0:00:23.4]} 37... Rb8 {[%clk 0:00:56.5]} 38. Qf3 {[%clk 0:00:23.6]} 38... Re8
{[%clk 0:00:52.8]} 39. Re2 {[%clk 0:00:20.5]} 39... Re6 {[%clk 0:00:48.2]} 40.
Kf1 {[%clk 0:00:13.4]} 40... Rf6 {[%clk 0:00:48]} 0-1

[Event "Early-Titled-Tuesday-Blitz-April-23-2024"]
[Site "Chess.com"]
[Date "2024.04.23"]
[Round "11"]
[White "Silvederione"]
[Black "alexrustemov"]
[Result "0-1"]
[WhiteElo "2487"]
[BlackElo "2838"]
[TimeControl "180+1"]
[EndTime "10:10:43 PDT"]
[Termination "alexrustemov won by resignation"]

1. d4 {[%clk 0:03:00.9]} 1... Nf6 {[%clk 0:02:48.5]} 2. Nc3 {[%clk 0:03:01.2]}
2... d5 {[%clk 0:02:48]} 3. Bf4 {[%clk 0:03:01.1]} 3... c5 {[%clk 0:02:47.8]} 4.
e3 {[%clk 0:03:01.5]} 4... cxd4 {[%clk 0:02:47]} 5. exd4 {[%clk 0:03:02.4]} 5...
a6 {[%clk 0:02:46.2]} 6. Nf3 {[%clk 0:03:02.8]} 6... Nc6 {[%clk 0:02:46.4]} 7.
Ne5 {[%clk 0:03:03.4]} 7... e6 {[%clk 0:02:46.5]} 8. Nxc6 {[%clk 0:03:02.3]}
8... bxc6 {[%clk 0:02:47.4]} 9. Na4 {[%clk 0:03:02.6]} 9... Bd6 {[%clk
0:02:47.4]} 10. Bxd6 {[%clk 0:03:02.9]} 10... Qxd6 {[%clk 0:02:48]} 11. Bd3
{[%clk 0:03:02.9]} 11... O-O {[%clk 0:02:44.8]} 12. O-O {[%clk 0:03:01.8]} 12...
a5 {[%clk 0:02:44.4]} 13. Re1 {[%clk 0:02:36.8]} 13... Ba6 {[%clk 0:02:43.5]}
14. Nc5 {[%clk 0:02:31.3]} 14... Bxd3 {[%clk 0:02:42.2]} 15. Qxd3 {[%clk
0:02:26.1]} 15... Nd7 {[%clk 0:02:41.5]} 16. Nxd7 {[%clk 0:02:20.2]} 16... Qxd7
{[%clk 0:02:42.4]} 17. b3 {[%clk 0:02:10.5]} 17... Qa7 {[%clk 0:02:29.2]} 18.
Rac1 {[%clk 0:01:58]} 18... Rfb8 {[%clk 0:02:19.1]} 19. Re3 {[%clk 0:01:24.6]}
19... c5 {[%clk 0:02:09.7]} 20. Rh3 {[%clk 0:01:23.5]} 20... h6 {[%clk
0:02:07.3]} 21. c4 {[%clk 0:01:12.8]} 21... Rd8 {[%clk 0:01:44.5]} 22. cxd5
{[%clk 0:00:25.7]} 22... Rxd5 {[%clk 0:01:43.5]} 23. Rxc5 {[%clk 0:00:24.3]}
23... Rxc5 {[%clk 0:01:38.7]} 24. dxc5 {[%clk 0:00:25.2]} 24... Qxc5 {[%clk
0:01:38.6]} 25. Re3 {[%clk 0:00:20.5]} 25... Rc8 {[%clk 0:01:36.2]} 26. h3
{[%clk 0:00:19.8]} 26... g6 {[%clk 0:01:28.1]} 27. Kh2 {[%clk 0:00:18.9]} 27...
h5 {[%clk 0:01:27.9]} 28. Rf3 {[%clk 0:00:17.2]} 28... Qe5+ {[%clk 0:01:26.6]}
29. g3 {[%clk 0:00:17]} 29... Rc1 {[%clk 0:01:25.3]} 30. Qe3 {[%clk 0:00:16.1]}
30... Qa1 {[%clk 0:01:24.2]} 31. g4 {[%clk 0:00:14.9]} 31... h4 {[%clk
0:01:20.8]} 32. Rf4 {[%clk 0:00:10.3]} 32... Rh1+ {[%clk 0:01:19.5]} 33. Kg2
{[%clk 0:00:10.8]} 33... Qf1+ {[%clk 0:01:17.5]} 34. Kf3 {[%clk 0:00:10.9]}
34... Rxh3+ {[%clk 0:01:17.6]} 35. Ke4 {[%clk 0:00:11.7]} 35... Rxe3+ {[%clk
0:01:17.4]} 36. fxe3 {[%clk 0:00:12.6]} 36... Qg2+ {[%clk 0:01:16.1]} 37. Ke5
{[%clk 0:00:12.7]} 37... h3 {[%clk 0:01:16.2]} 38. Kf6 {[%clk 0:00:12.6]} 38...
h2 {[%clk 0:01:14.2]} 39. Rd4 {[%clk 0:00:12.5]} 39... h1=Q {[%clk 0:01:12.6]}
40. g5 {[%clk 0:00:12.8]} 40... Qf2+ {[%clk 0:01:11.8]} 41. Ke7 {[%clk
0:00:12.7]} 41... Qxe3 {[%clk 0:01:05.4]} 42. Rd8+ {[%clk 0:00:13.6]} 42... Kg7
{[%clk 0:01:05.2]} 43. b4 {[%clk 0:00:14.2]} 43... Qxg5+ {[%clk 0:01:04.8]} 44.
Ke8 {[%clk 0:00:14.1]} 44... Qc6+ {[%clk 0:01:03.8]} 0-1

[Event "Early-Titled-Tuesday-Blitz-April-23-2024"]
[Site "Chess.com"]
[Date "2024.04.23"]
[Round "11"]
[White "viktorgen2021"]
[Black "viktorskliarov"]
[Result "1-0"]
[WhiteElo "2490"]
[BlackElo "2595"]
[TimeControl "180+1"]
[EndTime "10:10:44 PDT"]
[Termination "viktorgen2021 won by resignation"]

1. e4 {[%clk 0:02:55.4]} 1... c5 {[%clk 0:02:57.7]} 2. Nc3 {[%clk 0:02:54]} 2...
Nc6 {[%clk 0:02:57.6]} 3. g3 {[%clk 0:02:54.6]} 3... g6 {[%clk 0:02:57.9]} 4.
Bg2 {[%clk 0:02:55.1]} 4... Bg7 {[%clk 0:02:58.6]} 5. d3 {[%clk 0:02:55]} 5...
d6 {[%clk 0:02:59]} 6. Nge2 {[%clk 0:02:55.1]} 6... h5 {[%clk 0:02:57.8]} 7. h3
{[%clk 0:02:53.8]} 7... Nf6 {[%clk 0:02:56.2]} 8. Be3 {[%clk 0:02:54]} 8... Rb8
{[%clk 0:02:51.2]} 9. a4 {[%clk 0:02:52.1]} 9... a6 {[%clk 0:02:51]} 10. O-O
{[%clk 0:02:47.6]} 10... b5 {[%clk 0:02:25.9]} 11. axb5 {[%clk 0:02:42.3]} 11...
axb5 {[%clk 0:02:26.8]} 12. d4 {[%clk 0:02:42.7]} 12... cxd4 {[%clk 0:02:13.2]}
13. Nxd4 {[%clk 0:02:41]} 13... Ne5 {[%clk 0:01:43.3]} 14. f4 {[%clk 0:02:15]}
14... Nc4 {[%clk 0:01:42.3]} 15. Bf2 {[%clk 0:02:15.4]} 15... Bb7 {[%clk
0:01:12.1]} 16. b3 {[%clk 0:02:11.8]} 16... Nb6 {[%clk 0:01:11.6]} 17. Ndxb5
{[%clk 0:02:07.1]} 17... O-O {[%clk 0:01:07.1]} 18. Ra7 {[%clk 0:02:03.5]} 18...
Nfd7 {[%clk 0:00:58.6]} 19. Qe2 {[%clk 0:01:55.9]} 19... Bc6 {[%clk 0:00:50.4]}
20. Nd4 {[%clk 0:01:52.5]} 20... Ba8 {[%clk 0:00:39.8]} 21. f5 {[%clk
0:01:41.9]} 21... Ne5 {[%clk 0:00:19.2]} 22. fxg6 {[%clk 0:01:41.8]} 22... Nxg6
{[%clk 0:00:19.5]} 23. Qxh5 {[%clk 0:01:41.4]} 23... Rb7 {[%clk 0:00:19.5]} 24.
Rxb7 {[%clk 0:01:20.8]} 24... Bxb7 {[%clk 0:00:19.5]} 25. Nd5 {[%clk 0:01:21.5]}
25... Nxd5 {[%clk 0:00:17.5]} 26. exd5 {[%clk 0:01:21.7]} 26... Qa5 {[%clk
0:00:10.3]} 27. Nf5 {[%clk 0:01:16.4]} 27... Qd2 {[%clk 0:00:07]} 28. Be4 {[%clk
0:00:53.7]} 28... Rc8 {[%clk 0:00:05.9]} 29. Be3 {[%clk 0:00:50.7]} 29... Qc3
{[%clk 0:00:05.1]} 30. Nxe7+ {[%clk 0:00:42.5]} 30... Nxe7 {[%clk 0:00:04.1]}
31. Qxf7+ {[%clk 0:00:42.8]} 31... Kh8 {[%clk 0:00:04]} 32. Qh5+ {[%clk
0:00:43.4]} 32... Kg8 {[%clk 0:00:04.5]} 33. Bh7+ {[%clk 0:00:41.8]} 33... Kh8
{[%clk 0:00:04.8]} 34. Bg6+ {[%clk 0:00:41.4]} 1-0

[Event "Early-Titled-Tuesday-Blitz-April-23-2024"]
[Site "Chess.com"]
[Date "2024.04.23"]
[Round "11"]
[White "NigiriSushies"]
[Black "guillembaches"]
[Result "0-1"]
[WhiteElo "2452"]
[BlackElo "2585"]
[TimeControl "180+1"]
[EndTime "10:10:44 PDT"]
[Termination "guillembaches won on time"]

1. e4 {[%clk 0:03:00.9]} 1... d5 {[%clk 0:03:00]} 2. exd5 {[%clk 0:03:00.6]}
2... Qxd5 {[%clk 0:03:00.9]} 3. Nc3 {[%clk 0:03:00.8]} 3... Qa5 {[%clk
0:03:01.5]} 4. Nf3 {[%clk 0:03:00.9]} 4... Nf6 {[%clk 0:03:02]} 5. Be2 {[%clk
0:02:59.6]} 5... Bg4 {[%clk 0:03:01]} 6. h3 {[%clk 0:02:59.7]} 6... Bh5 {[%clk
0:03:00.8]} 7. O-O {[%clk 0:02:59.7]} 7... e6 {[%clk 0:03:00.7]} 8. d4 {[%clk
0:02:59.1]} 8... c6 {[%clk 0:03:00.3]} 9. Ne5 {[%clk 0:02:58.8]} 9... Bg6 {[%clk
0:02:56.8]} 10. Bf4 {[%clk 0:02:54.5]} 10... Bb4 {[%clk 0:02:50.3]} 11. Nc4
{[%clk 0:02:50.3]} 11... Qd8 {[%clk 0:02:44.7]} 12. a3 {[%clk 0:02:50.1]} 12...
Bxc3 {[%clk 0:02:40.1]} 13. Nd6+ {[%clk 0:02:47.7]} 13... Kf8 {[%clk 0:02:35.6]}
14. bxc3 {[%clk 0:02:42.3]} 14... Nd5 {[%clk 0:02:31.7]} 15. Nxb7 {[%clk
0:02:37]} 15... Qb6 {[%clk 0:01:50.9]} 16. Bd6+ {[%clk 0:02:34.9]} 16... Kg8
{[%clk 0:01:51]} 17. Rb1 {[%clk 0:00:50.1]} 17... Nxc3 {[%clk 0:01:37]} 18. Rxb6
{[%clk 0:00:48.6]} 18... Nxd1 {[%clk 0:01:33.9]} 19. Rb4 {[%clk 0:00:14.2]}
19... Nc3 {[%clk 0:01:30.4]} 20. Bf3 {[%clk 0:00:10.5]} 20... Nd7 {[%clk
0:01:27.4]} 21. Bxc6 {[%clk 0:00:09.5]} 21... Nb6 {[%clk 0:01:22.5]} 22. Na5
{[%clk 0:00:04.7]} 22... Rc8 {[%clk 0:01:18.6]} 23. Bc5 {[%clk 0:00:05]} 23...
Bxc2 {[%clk 0:01:09.9]} 24. Bxb6 {[%clk 0:00:03.6]} 24... Ne2+ {[%clk
0:01:05.1]} 25. Kh2 {[%clk 0:00:03.4]} 25... axb6 {[%clk 0:01:01.6]} 26. Rxb6
{[%clk 0:00:02.6]} 26... Nxd4 {[%clk 0:00:59.3]} 27. Bb7 {[%clk 0:00:03.1]}
27... Rc5 {[%clk 0:00:48.4]} 28. Be4 {[%clk 0:00:01.1]} 28... g6 {[%clk
0:00:42.4]} 29. Bxc2 {[%clk 0:00:01.4]} 29... Rxa5 {[%clk 0:00:32.1]} 0-1

[Event "Early-Titled-Tuesday-Blitz-April-23-2024"]
[Site "Chess.com"]
[Date "2024.04.23"]
[Round "11"]
[White "whiteglovethief"]
[Black "giovannibrandao7"]
[Result "0-1"]
[WhiteElo "2569"]
[BlackElo "2375"]
[TimeControl "180+1"]
[EndTime "10:10:47 PDT"]
[Termination "giovannibrandao7 won by resignation"]

1. d4 {[%clk 0:02:43.3]} 1... Nf6 {[%clk 0:02:59]} 2. c4 {[%clk 0:02:39.9]} 2...
g6 {[%clk 0:02:59.6]} 3. Nc3 {[%clk 0:02:39.2]} 3... d5 {[%clk 0:03:00.2]} 4.
Bg5 {[%clk 0:02:36.2]} 4... c6 {[%clk 0:02:54.4]} 5. Bxf6 {[%clk 0:02:32.7]}
5... exf6 {[%clk 0:02:54]} 6. cxd5 {[%clk 0:02:32.6]} 6... cxd5 {[%clk
0:02:54.2]} 7. e3 {[%clk 0:02:32.3]} 7... Nc6 {[%clk 0:02:43.7]} 8. Qb3 {[%clk
0:02:31.1]} 8... Bg7 {[%clk 0:02:44.1]} 9. Qxd5 {[%clk 0:02:30.3]} 9... Qxd5
{[%clk 0:02:41.1]} 10. Nxd5 {[%clk 0:02:31.2]} 10... O-O {[%clk 0:02:41.2]} 11.
Bb5 {[%clk 0:02:29.5]} 11... Be6 {[%clk 0:02:40.1]} 12. Bxc6 {[%clk 0:02:29.1]}
12... bxc6 {[%clk 0:02:39.1]} 13. Nc3 {[%clk 0:02:22.7]} 13... Rab8 {[%clk
0:02:36.9]} 14. b3 {[%clk 0:02:22.3]} 14... c5 {[%clk 0:02:30.4]} 15. dxc5
{[%clk 0:02:16.3]} 15... f5 {[%clk 0:02:27.5]} 16. Rc1 {[%clk 0:02:15.1]} 16...
Rfc8 {[%clk 0:02:11.8]} 17. Nge2 {[%clk 0:01:48.6]} 17... Rxc5 {[%clk
0:02:08.5]} 18. O-O {[%clk 0:01:46.8]} 18... Rbc8 {[%clk 0:01:56.3]} 19. Na4
{[%clk 0:01:45.3]} 19... Rc2 {[%clk 0:01:56.9]} 20. Nec3 {[%clk 0:01:25.6]}
20... R2xc3 {[%clk 0:01:55.9]} 21. Nxc3 {[%clk 0:01:25.8]} 21... Rxc3 {[%clk
0:01:55.5]} 22. Rxc3 {[%clk 0:01:25.8]} 22... Bxc3 {[%clk 0:01:56]} 23. Rc1
{[%clk 0:01:25.7]} 23... Ba5 {[%clk 0:01:53.6]} 24. g3 {[%clk 0:01:18.7]} 24...
Kf8 {[%clk 0:01:49.1]} 25. h4 {[%clk 0:01:16.2]} 25... Ke7 {[%clk 0:01:49]} 26.
Kf1 {[%clk 0:01:14.8]} 26... h5 {[%clk 0:01:48.5]} 27. Ke2 {[%clk 0:01:15.1]}
27... Kd6 {[%clk 0:01:44.7]} 28. Kd3 {[%clk 0:01:14]} 28... Bb6 {[%clk
0:01:16.3]} 29. Kc3 {[%clk 0:01:13]} 29... Kd5 {[%clk 0:01:15.4]} 30. Kb4 {[%clk
0:01:11.4]} 30... Ke4 {[%clk 0:01:03.2]} 31. a4 {[%clk 0:01:07.6]} 31... Bd8
{[%clk 0:00:53.9]} 32. Rc2 {[%clk 0:00:57.3]} 32... a5+ {[%clk 0:00:53.3]} 33.
Ka3 {[%clk 0:00:52.2]} 33... Be7+ {[%clk 0:00:50.2]} 34. Kb2 {[%clk 0:00:51.3]}
34... Bb4 {[%clk 0:00:50.6]} 35. Kc1 {[%clk 0:00:47.4]} 35... Bxb3 {[%clk
0:00:46.5]} 36. Rc7 {[%clk 0:00:47.8]} 36... Kf3 {[%clk 0:00:43.6]} 37. Kb2
{[%clk 0:00:44.4]} 37... Be6 {[%clk 0:00:31.2]} 38. Rc2 {[%clk 0:00:44]} 38...
Be1 {[%clk 0:00:31.8]} 39. Ka3 {[%clk 0:00:37]} 39... Bxf2 {[%clk 0:00:28.3]}
40. Rc5 {[%clk 0:00:36.3]} 40... Be1 {[%clk 0:00:28.1]} 0-1

[Event "Early-Titled-Tuesday-Blitz-April-23-2024"]
[Site "Chess.com"]
[Date "2024.04.23"]
[Round "11"]
[White "maracayo"]
[Black "DeArron_Fox"]
[Result "1-0"]
[WhiteElo "2359"]
[BlackElo "2491"]
[TimeControl "180+1"]
[EndTime "10:10:48 PDT"]
[Termination "maracayo won by resignation"]

1. e4 {[%clk 0:02:59.6]} 1... c5 {[%clk 0:02:59.9]} 2. Nf3 {[%clk 0:02:59.2]}
2... e6 {[%clk 0:03:00.4]} 3. d3 {[%clk 0:02:56.9]} 3... Nc6 {[%clk 0:03:00.1]}
4. Nbd2 {[%clk 0:02:57.8]} 4... d5 {[%clk 0:03:00.8]} 5. Be2 {[%clk 0:02:58.2]}
5... Nf6 {[%clk 0:03:01.2]} 6. O-O {[%clk 0:02:57.4]} 6... Be7 {[%clk
0:03:01.7]} 7. Re1 {[%clk 0:02:57.2]} 7... O-O {[%clk 0:03:02.2]} 8. c3 {[%clk
0:02:57.6]} 8... b5 {[%clk 0:02:58]} 9. h3 {[%clk 0:02:57.6]} 9... a5 {[%clk
0:02:57.7]} 10. exd5 {[%clk 0:02:57.6]} 10... Nxd5 {[%clk 0:02:57]} 11. d4
{[%clk 0:02:58.4]} 11... cxd4 {[%clk 0:02:44.3]} 12. cxd4 {[%clk 0:02:59.3]}
12... b4 {[%clk 0:02:32.7]} 13. Nc4 {[%clk 0:02:54.6]} 13... Ba6 {[%clk
0:02:30.7]} 14. Nce5 {[%clk 0:02:47.9]} 14... Nxe5 {[%clk 0:02:18.3]} 15. Nxe5
{[%clk 0:02:38.8]} 15... Bf6 {[%clk 0:02:16.3]} 16. Bf3 {[%clk 0:02:21.9]} 16...
Rc8 {[%clk 0:02:12.4]} 17. a3 {[%clk 0:02:02.9]} 17... Rc7 {[%clk 0:01:50.8]}
18. Bxd5 {[%clk 0:01:29.9]} 18... Qxd5 {[%clk 0:01:39.5]} 19. Bf4 {[%clk
0:01:22.2]} 19... Rb7 {[%clk 0:01:00.7]} 20. Rc1 {[%clk 0:01:06.4]} 20... bxa3
{[%clk 0:00:49.1]} 21. bxa3 {[%clk 0:01:07.3]} 21... Be7 {[%clk 0:00:24.1]} 22.
Rc3 {[%clk 0:00:44.3]} 22... Rb2 {[%clk 0:00:09.7]} 23. Nc6 {[%clk 0:00:29]}
23... Bf6 {[%clk 0:00:04.4]} 24. Re5 {[%clk 0:00:26.7]} 24... Bxe5 {[%clk
0:00:03.4]} 25. Ne7+ {[%clk 0:00:26.4]} 25... Kh8 {[%clk 0:00:02.4]} 26. Nxd5
{[%clk 0:00:27.3]} 26... Bxf4 {[%clk 0:00:01.1]} 27. Nxf4 {[%clk 0:00:26.5]}
27... Rfb8 {[%clk 0:00:01.8]} 28. Qh5 {[%clk 0:00:22.8]} 28... h6 {[%clk
0:00:02.1]} 29. Qxf7 {[%clk 0:00:22.1]} 1-0

[Event "Early-Titled-Tuesday-Blitz-April-23-2024"]
[Site "Chess.com"]
[Date "2024.04.23"]
[Round "11"]
[White "HanSchut"]
[Black "Alenzer"]
[Result "0-1"]
[WhiteElo "2327"]
[BlackElo "2241"]
[TimeControl "180+1"]
[EndTime "10:10:50 PDT"]
[Termination "Alenzer won by resignation"]

1. e4 {[%clk 0:03:00.9]} 1... c5 {[%clk 0:02:48.2]} 2. Nf3 {[%clk 0:03:00.4]}
2... e6 {[%clk 0:02:48.2]} 3. c4 {[%clk 0:02:59.5]} 3... Nc6 {[%clk 0:02:47.8]}
4. Nc3 {[%clk 0:02:58.9]} 4... d6 {[%clk 0:02:44.4]} 5. d4 {[%clk 0:02:58.6]}
5... cxd4 {[%clk 0:02:43.6]} 6. Nxd4 {[%clk 0:02:59.5]} 6... Nf6 {[%clk
0:02:30]} 7. Be3 {[%clk 0:02:58.5]} 7... Be7 {[%clk 0:02:29.2]} 8. Be2 {[%clk
0:02:58.1]} 8... O-O {[%clk 0:02:28.6]} 9. O-O {[%clk 0:02:57.5]} 9... a6 {[%clk
0:02:27.2]} 10. f3 {[%clk 0:02:57.6]} 10... Qc7 {[%clk 0:02:22.9]} 11. Qd2
{[%clk 0:02:56.9]} 11... Bd7 {[%clk 0:02:15.3]} 12. Rac1 {[%clk 0:02:56.2]}
12... Ne5 {[%clk 0:02:03.1]} 13. b3 {[%clk 0:02:53.1]} 13... Rac8 {[%clk
0:01:55.4]} 14. Rfd1 {[%clk 0:02:52.9]} 14... Qa5 {[%clk 0:01:50.1]} 15. Nd5
{[%clk 0:02:45.5]} 15... Qd8 {[%clk 0:01:48.7]} 16. Nxe7+ {[%clk 0:02:46.4]}
16... Qxe7 {[%clk 0:01:48.9]} 17. h3 {[%clk 0:02:44.1]} 17... d5 {[%clk
0:01:41.3]} 18. exd5 {[%clk 0:02:42.1]} 18... exd5 {[%clk 0:01:41.4]} 19. f4
{[%clk 0:02:37]} 19... Ng6 {[%clk 0:01:32.4]} 20. c5 {[%clk 0:02:16.5]} 20...
Ne4 {[%clk 0:01:27.4]} 21. Qe1 {[%clk 0:01:26.4]} 21... Nxc5 {[%clk 0:01:22.6]}
22. Bf3 {[%clk 0:01:26.2]} 22... Rfe8 {[%clk 0:01:16.5]} 23. Bf2 {[%clk
0:00:59.7]} 23... Qd6 {[%clk 0:01:09.9]} 24. Qd2 {[%clk 0:00:51.2]} 24... Nxf4
{[%clk 0:01:02.7]} 25. Re1 {[%clk 0:00:29.2]} 25... Ncd3 {[%clk 0:00:52]} 26.
Rxe8+ {[%clk 0:00:22]} 26... Rxe8 {[%clk 0:00:50.6]} 27. Bg3 {[%clk 0:00:17.9]}
27... Nxh3+ {[%clk 0:00:48]} 28. Kh2 {[%clk 0:00:17.7]} 28... Nhf4 {[%clk
0:00:46.9]} 29. Rc3 {[%clk 0:00:15.6]} 29... Qh6+ {[%clk 0:00:44.2]} 30. Kg1
{[%clk 0:00:13.8]} 30... Nh3+ {[%clk 0:00:42.5]} 31. gxh3 {[%clk 0:00:11.1]}
31... Qxd2 {[%clk 0:00:42.3]} 32. Rc7 {[%clk 0:00:10]} 32... Bxh3 {[%clk
0:00:37.3]} 33. Bf2 {[%clk 0:00:05]} 33... Qxf2+ {[%clk 0:00:36.6]} 0-1

[Event "Early-Titled-Tuesday-Blitz-April-23-2024"]
[Site "Chess.com"]
[Date "2024.04.23"]
[Round "11"]
[White "Nemegejas"]
[Black "DrVelja"]
[Result "0-1"]
[WhiteElo "2814"]
[BlackElo "2987"]
[TimeControl "180+1"]
[EndTime "10:10:56 PDT"]
[Termination "DrVelja won on time"]

1. d4 {[%clk 0:03:00.9]} 1... d5 {[%clk 0:02:52.5]} 2. Nf3 {[%clk 0:03:01.2]}
2... Nf6 {[%clk 0:02:52.2]} 3. e3 {[%clk 0:03:01.9]} 3... e6 {[%clk 0:02:51.6]}
4. Bd3 {[%clk 0:03:01.7]} 4... Bd6 {[%clk 0:02:50.5]} 5. b3 {[%clk 0:03:01.2]}
5... b6 {[%clk 0:02:50.4]} 6. Bb2 {[%clk 0:03:01.4]} 6... Bb7 {[%clk 0:02:51]}
7. O-O {[%clk 0:02:59.7]} 7... O-O {[%clk 0:02:50.2]} 8. Ne5 {[%clk 0:02:57.4]}
8... c5 {[%clk 0:02:48.8]} 9. Nd2 {[%clk 0:02:55.7]} 9... Nc6 {[%clk 0:02:49.3]}
10. a3 {[%clk 0:02:53.9]} 10... Rc8 {[%clk 0:02:47.7]} 11. Qe2 {[%clk
0:02:52.1]} 11... Qc7 {[%clk 0:02:47]} 12. f4 {[%clk 0:02:47.3]} 12... Ne7
{[%clk 0:02:44.1]} 13. dxc5 {[%clk 0:02:42.5]} 13... bxc5 {[%clk 0:02:41]} 14.
c4 {[%clk 0:02:40.1]} 14... Ng6 {[%clk 0:02:39.6]} 15. Ndf3 {[%clk 0:02:34.1]}
15... Rfd8 {[%clk 0:02:25.5]} 16. Rac1 {[%clk 0:02:24.4]} 16... Qe7 {[%clk
0:02:18.7]} 17. Ng5 {[%clk 0:02:22.1]} 17... Rf8 {[%clk 0:01:52.5]} 18. Ng4
{[%clk 0:02:00.7]} 18... Ne4 {[%clk 0:01:44.9]} 19. Bxe4 {[%clk 0:01:57.5]}
19... dxe4 {[%clk 0:01:45.8]} 20. Rcd1 {[%clk 0:01:35.6]} 20... f6 {[%clk
0:01:33.2]} 21. Nxe6 {[%clk 0:01:13.2]} 21... Qxe6 {[%clk 0:01:30.8]} 22. f5
{[%clk 0:01:13.8]} 22... Qe7 {[%clk 0:01:31.1]} 23. fxg6 {[%clk 0:01:10.9]}
23... hxg6 {[%clk 0:01:32]} 24. Rd2 {[%clk 0:00:49]} 24... Rcd8 {[%clk
0:01:13.7]} 25. Rfd1 {[%clk 0:00:47.4]} 25... f5 {[%clk 0:01:14.1]} 26. Nf2
{[%clk 0:00:45.8]} 26... f4 {[%clk 0:01:14.5]} 27. Ng4 {[%clk 0:00:25]} 27... f3
{[%clk 0:01:10.3]} 28. Qe1 {[%clk 0:00:24.4]} 28... Bc8 {[%clk 0:01:05.3]} 29.
h3 {[%clk 0:00:13.9]} 29... Bxg4 {[%clk 0:00:56.3]} 30. hxg4 {[%clk 0:00:14.8]}
30... Qg5 {[%clk 0:00:56.1]} 31. Qf2 {[%clk 0:00:04]} 31... fxg2 {[%clk
0:00:37.6]} 32. Qxg2 {[%clk 0:00:03]} 32... Qxe3+ {[%clk 0:00:38.3]} 33. Kh1
{[%clk 0:00:02.6]} 33... Rf3 {[%clk 0:00:30.3]} 34. Rxd6 {[%clk 0:00:01.1]}
34... Rh3+ {[%clk 0:00:30.7]} 0-1

[Event "Early-Titled-Tuesday-Blitz-April-23-2024"]
[Site "Chess.com"]
[Date "2024.04.23"]
[Round "11"]
[White "manitodeplomo"]
[Black "Brave_spirit12"]
[Result "1-0"]
[WhiteElo "2639"]
[BlackElo "2714"]
[TimeControl "180+1"]
[EndTime "10:11:00 PDT"]
[Termination "manitodeplomo won on time"]

1. d4 {[%clk 0:02:59.3]} 1... d5 {[%clk 0:02:58.6]} 2. c4 {[%clk 0:02:57.8]}
2... c6 {[%clk 0:02:59.1]} 3. Nf3 {[%clk 0:02:55.4]} 3... Nf6 {[%clk 0:02:59.4]}
4. Nc3 {[%clk 0:02:54.9]} 4... e6 {[%clk 0:02:58.2]} 5. Bg5 {[%clk 0:02:54.8]}
5... dxc4 {[%clk 0:02:58.7]} 6. e4 {[%clk 0:02:54.1]} 6... b5 {[%clk 0:02:57.3]}
7. a4 {[%clk 0:02:53.5]} 7... Bb4 {[%clk 0:02:39.9]} 8. e5 {[%clk 0:02:53]} 8...
h6 {[%clk 0:02:39.2]} 9. exf6 {[%clk 0:02:53.2]} 9... hxg5 {[%clk 0:02:37.6]}
10. fxg7 {[%clk 0:02:54.1]} 10... Rg8 {[%clk 0:02:37.7]} 11. g3 {[%clk
0:02:54.7]} 11... Nd7 {[%clk 0:02:25.5]} 12. Bg2 {[%clk 0:02:54.3]} 12... Bb7
{[%clk 0:02:26.2]} 13. O-O {[%clk 0:02:53.8]} 13... Bxc3 {[%clk 0:02:25.3]} 14.
bxc3 {[%clk 0:02:53.6]} 14... Qc7 {[%clk 0:02:16.9]} 15. Ne5 {[%clk 0:02:51.1]}
15... Rxg7 {[%clk 0:01:49.9]} 16. Qh5 {[%clk 0:02:45.5]} 16... O-O-O {[%clk
0:01:48.1]} 17. axb5 {[%clk 0:02:27.7]} 17... Nxe5 {[%clk 0:00:43.6]} 18. dxe5
{[%clk 0:02:28.6]} 18... Kb8 {[%clk 0:00:31.7]} 19. Rfb1 {[%clk 0:01:30.9]}
19... c5 {[%clk 0:00:29.7]} 20. Bxb7 {[%clk 0:01:23.9]} 20... Qxb7 {[%clk
0:00:29]} 21. Qg4 {[%clk 0:01:23.1]} 21... Rh7 {[%clk 0:00:21.8]} 22. Qxg5
{[%clk 0:01:12.3]} 22... Rdh8 {[%clk 0:00:20]} 23. h4 {[%clk 0:01:09.3]} 23...
Rh5 {[%clk 0:00:19.3]} 24. Qe3 {[%clk 0:00:43.2]} 24... f5 {[%clk 0:00:10.8]}
25. exf6 {[%clk 0:00:36.3]} 25... e5 {[%clk 0:00:03.8]} 26. Qxc5 {[%clk
0:00:30.6]} 26... Rxh4 {[%clk 0:00:02.2]} 27. Qd6+ {[%clk 0:00:20]} 27... Ka8
{[%clk 0:00:02.2]} 28. Qc6 {[%clk 0:00:18.3]} 28... Rh1+ {[%clk 0:00:01.7]} 29.
Kg2 {[%clk 0:00:18.5]} 1-0